fUST/lending_fUST_20240720
["ID","MTS","AMOUNT","RATE_DAILY","PERIOD"]
[332674235,1721418648110,-500.0,0.00016438,2]
[332674236,1721418648119,-500.0,0.00016438,2]
[332674237,1721418648128,-500.0,0.00016438,2]
[332674238,1721418648138,-500.0,0.00016438,2]
[332674239,1721418648148,-500.0,0.00016438,2]
[332674240,1721418648157,-854.97,0.00016438,2]
[332674241,1721418648169,-500.0,0.00016438,2]
[332674242,1721418648178,-500.0,0.00016438,2]
[332674243,1721418648188,-500.07291912,0.00016438,2]
[332674244,1721418648198,-500.0,0.00016438,2]
[332674245,1721418648207,-500.0,0.00016438,2]
[332674246,1721418648217,-500.0,0.00016438,2]
[332674247,1721418648227,-500.0,0.00016438,2]
[332674248,1721418648236,-500.0,0.00016438,2]
[332674249,1721418648246,-1087.19,0.00016438,2]
[332674250,1721418648256,-656.28,0.00016438,2]
[332674251,1721418648266,-500.0,0.00016438,2]
[332674252,1721418648275,-500.0,0.00016438,2]
[332674253,1721418648286,-500.0,0.00016438,2]
[332674254,1721418648295,-274.27752618,0.00016438,2]
[332674255,1721418648304,-2860.77,0.00016438,2]
[332674256,1721418648314,-500.0,0.00016438,2]
[332674257,1721418648323,-500.0,0.00016438,2]
[332674258,1721418648332,-500.27965624,0.00016438,2]
[332674259,1721418648341,-500.55108454,0.00016438,2]
[332674260,1721418648350,-500.0,0.00016438,2]
[332674261,1721418648360,-500.0,0.00016438,2]
[332674262,1721418648369,-500.0,0.00016438,2]
[332674263,1721418648378,-500.0,0.00016438,2]
[332674264,1721418648389,-500.0,0.00016438,2]
[332674265,1721418648403,-500.0,0.00016438,2]
[332674266,1721418648414,-500.0,0.00016438,2]
[332674267,1721418648423,-500.0,0.00016438,2]
[332674268,1721418648434,-500.0,0.00016438,2]
[332674269,1721418648448,-1696.67,0.00016438,2]
[332674270,1721418648458,-500.0,0.00016438,2]
[332674271,1721418648469,-500.0,0.00016438,2]
[332674272,1721418648478,-500.0,0.00016438,2]
[332674273,1721418648488,-500.0,0.00016438,2]
[332674274,1721418648498,-791.04,0.00016438,2]
[332674275,1721418648508,-500.0,0.00016438,2]
[332674276,1721418648518,-500.0,0.00016438,2]
[332674277,1721418648527,-469.69008346,0.00016438,2]
[332674278,1721418648852,-30.30991654,0.00016438,2]
[332674279,1721418648862,-500.0,0.00016438,2]
[332674280,1721418648872,-500.0,0.00016438,2]
[332674281,1721418648883,-32.58223683,0.00016438,2]
[332674282,1721418648896,-467.41776317,0.00016438,2]
[332674283,1721418648906,-500.0,0.00016438,2]
[332674284,1721418648917,-371.51980599,0.00016438,2]
[332674285,1721418648927,-500.0,0.00016438,2]
[332674286,1721418648938,-500.0,0.00016438,2]
[332674287,1721418648949,-374.31411848,0.00016438,2]
[332674288,1721418650556,252.73657135,0.00010959,2]
[332674289,1721418650579,146.94342865,0.00010959,2]
[332674290,1721418661106,333.06,0.00010959,2]
[332674291,1721418662377,156.50340593,0.00013283,2]
[332674292,1721418662738,448.00712342,0.00013283,2]
[332674293,1721418662762,226.89772375,0.00013283,2]
[332674294,1721418662785,270.18462117,0.00013283,2]
[332674295,1721418662806,217.99827886,0.00013283,2]
[332674296,1721418662828,189.05910374,0.00013283,2]
[332674297,1721418662864,7068.04717664,0.00013283,2]
[332674298,1721418671615,277.55,0.00010959,2]
[332674299,1721418672452,375.44925905,0.00013283,2]
[332674300,1721418673298,17278.76823358,0.00013283,2]
[332674301,1721418674994,154.79103211,0.00013283,2]
[332674302,1721418682391,231.29,0.00010959,2]
[332674303,1721418692918,192.75,0.00010959,2]
[332674304,1721418692977,1023.56408471,0.00013283,2]
[332674305,1721418704329,160.62,0.00010959,2]
[332674306,1721418707953,1023.56408471,0.00013283,2]
[332674307,1721418714823,803.13,0.00010959,2]
[332674310,1721418732327,345.64,0.0002502,120]
[332674335,1721419411892,980.61422822,9.999e-05,2]
[332674342,1721419463036,493.50123803,9.999e-05,2]
[332674344,1721419474260,471.55021707,9.999e-05,2]
[332674346,1721419509384,177.82849572,9.999e-05,2]
[332674349,1721419512720,155.26579837,9.999e-05,2]
[332674350,1721419520396,567.73879262,9.999e-05,2]
[332674352,1721419527899,392.26521948,0.0001212,2]
[332674353,1721419530182,235.80657635,9.999e-05,2]
[332674354,1721419549369,299.41638236,9.999e-05,2]
[332674355,1721419552965,543.75961978,0.0001212,2]
[332674357,1721419570276,567.1681476,0.0001212,2]
[332674358,1721419577885,525.05700147,0.0001212,2]
[332674361,1721419592725,3085.40967143,0.0001212,2]
[332674362,1721419625117,-188.9221777,0.00014039,2]
[332674363,1721419625142,-250.0,0.00014525,2]
[332674364,1721419625170,-250.0,0.00014565,2]
[332674365,1721419625194,-210.134923,0.0001457,2]
[332674366,1721419625218,-250.0,0.00014605,2]
[332674367,1721419625241,-250.0,0.00014644,2]
[332674368,1721419625265,-250.0,0.00014684,2]
[332674369,1721419625289,-250.0,0.00014724,2]
[332674370,1721419625313,-250.0,0.00014764,2]
[332674371,1721419625337,-166.666666,0.00014795,2]
[332674372,1721419625361,-250.0,0.00014804,2]
[332674373,1721419625386,-250.0,0.00014844,2]
[332674374,1721419625412,-250.0,0.00014883,2]
[332674375,1721419625436,-252.73657135,0.000149,2]
[332674376,1721419625461,-250.0,0.00014923,2]
[332674377,1721419625486,-250.0,0.00014963,2]
[332674378,1721419625510,-300.0,0.00014999,2]
[332674379,1721419625919,-2423.89779899,0.00015,2]
[332674380,1721419625940,-21281.21747444,0.00015,2]
[332674381,1721419625961,-402.73067489,0.00015,2]
[332674382,1721419625983,-250.0,0.00015003,2]
[332674383,1721419626006,-250.0,0.00015043,2]
[332674384,1721419626035,-250.0,0.00015083,2]
[332674385,1721419626059,-250.0,0.00015122,2]
[332674386,1721419626080,-250.0,0.00015162,2]
[332674387,1721419626105,-250.0,0.00015202,2]
[332674388,1721419626127,-250.0,0.00015242,2]
[332674389,1721419626149,-250.0,0.00015282,2]
[332674390,1721419626171,-153.0,0.00015616,2]
[332674391,1721419626192,-306.0,0.00015616,2]
[332674392,1721419626214,-20746.06049871,0.00015708,2]
[332674393,1721419626236,-1179.78916348,0.00015708,2]
[332674394,1721419626258,-219.15962737,0.00015708,2]
[332674395,1721419626278,-161.70749677,0.0001571,2]
[332674396,1721419626300,-168.27432711,0.00015712,2]
[332674397,1721419626321,-756.1226197,0.00015744,2]
[332674398,1721419626343,-923.9035342,0.00015744,2]
[332674399,1721419626366,-266.96885211,0.00015751,2]
[332674400,1721419626387,-155.6214738,0.00015751,2]
[332674401,1721419626409,-153.0,0.00015841,2]
[332674402,1721419626432,-153.0,0.00015841,2]
[332674403,1721419626454,-153.0,0.00015841,2]
[332674404,1721419626475,-306.0,0.00015878,2]
[332674405,1721419626498,-153.0,0.0001589,2]
[332674406,1721419626519,-153.0,0.0001589,2]
[332674407,1721419626540,-153.0,0.0001589,2]
[332674408,1721419626560,-153.0,0.0001589,2]
[332674409,1721419626580,-153.0,0.0001589,2]
[332674410,1721419626600,-6995.74191931,0.00015952,2]
[332674411,1721419626620,-307.24636156,0.00015952,2]
[332674412,1721419626640,-5512.28778417,0.00015952,2]
[332674413,1721419626662,-532.47534185,0.00015954,2]
[332674414,1721419626694,-4375.05910698,0.00015954,2]
[332674415,1721419626715,-153.0,0.00015978,2]
[332674416,1721419626737,-586.8131775,0.00015978,2]
[332674417,1721419626757,-153.0,0.00015978,2]
[332674418,1721419626780,-154.77557542,0.00016038,2]
[332674419,1721419626801,-156.58671833,0.00016038,2]
[332674420,1721419626822,-180.17298398,0.00016038,2]
[332674421,1721419626843,-155.14715315,0.00016038,2]
[332674422,1721419626865,-154.72922386,0.00016095,2]
[332674423,1721419626886,-154.72922386,0.00016095,2]
[332674424,1721419626908,-155.39443755,0.00016159,2]
[332674425,1721419626932,-154.80649189,0.00016159,2]
[332674426,1721419626957,-153.0,0.00016164,2]
[332674427,1721419626978,-153.0,0.00016164,2]
[332674428,1721419626998,-153.0,0.00016164,2]
[332674429,1721419627019,-367.2522507,0.00016202,2]
[332674430,1721419627039,-153.0,0.00016252,2]
[332674431,1721419627061,-974.94095622,0.00016337,2]
[332674432,1721419627083,-1292.99119271,0.00016338,2]
[332674433,1721419627107,-2917.45217376,0.00016338,2]
[332674434,1721419627128,-1000.0,0.00016338,2]
[332674435,1721419627151,-25517.19780934,0.00016338,2]
[332674436,1721419627175,-258.79972966,0.00016392,2]
[332674437,1721419627402,156.97162586,9.999e-05,2]
[332674438,1721419629149,-500.0,0.00014691,2]
[332674440,1721419652108,-500.0,0.00014691,2]
[332674442,1721419686888,269.02255345,9.9e-05,2]
[332674444,1721419717716,3455.87169953,0.00012,2]
[332674445,1721419757139,-2070.88409,0.00014691,2]
[332674446,1721419757186,-14.52558143,0.00014691,2]
[332674451,1721419795770,199.137632,0.00014545,2]
[332674452,1721419795799,2886.27203943,0.00014545,2]
[332674479,1721419832950,-153.0,0.00015941,2]
[332674481,1721419832960,-117.5513048,0.00015978,2]
[332674486,1721419833004,-35.4486952,0.00015978,2]
[332674488,1721419833015,-2137.43178425,0.00016159,2]
[332674490,1721419833025,-2123.06633741,0.00016159,2]
[332674492,1721419833035,-2625.70695642,0.00016338,2]
[332674494,1721419833045,-1950.23722845,0.00016338,2]
[332674533,1721419839260,-49.76277155,0.00016338,2]
[332674534,1721419839270,-300.0,0.00016346,2]
[332674535,1721419839280,-164.91677678,0.00016427,2]
[332674536,1721419839289,-229.80706395,0.00016427,2]
[332674537,1721419839301,-270.19293605,0.00016427,2]
[332674538,1721419839311,-500.0,0.00016427,2]
[332674539,1721419839321,-171.08040068,0.00016427,2]
[332674540,1721419839334,-500.0,0.00016427,2]
[332674541,1721419839344,-399.8509992,0.00016427,2]
[332674542,1721419839355,-500.0,0.00016427,2]
[332674543,1721419839365,-519.50672134,0.00016427,2]
[332674544,1721419839375,-500.0,0.00016427,2]
[332674545,1721419839384,-189.66296656,0.00016427,2]
[332674546,1721419839394,-500.0,0.00016427,2]
[332674547,1721419839404,-500.0,0.00016427,2]
[332674548,1721419839413,-500.0,0.00016427,2]
[332674549,1721419839423,-500.0,0.00016427,2]
[332674550,1721419839432,-500.0,0.00016427,2]
[332674551,1721419839442,-604.52253771,0.00016427,2]
[332674552,1721419839451,-500.0,0.00016427,2]
[332674553,1721419839461,-500.0,0.00016427,2]
[332674554,1721419839470,-500.0,0.00016427,2]
[332674555,1721419839480,-269.5900377,0.00016427,2]
[332674556,1721419839489,-500.0,0.00016427,2]
[332674557,1721419839499,-500.0,0.00016427,2]
[332674558,1721419839508,-124905.15531996,0.00016428,2]
[332674575,1721419840891,-53487.16812104,0.00016428,2]
[332674641,1721419843976,-197.971164,0.00015433,2]
[332674643,1721419843985,-115.5578449,0.00016428,2]
[332674647,1721419843997,-302.20670787,0.00016428,2]
[332674650,1721419844008,-1465.45110338,0.00016428,2]
[332674652,1721419844021,-4031.18752872,0.00016428,2]
[332674694,1721419992770,3000.0,0.000214,30]
[332674695,1721419993513,3000.0,0.0002141,30]
[332674696,1721419993659,3000.0,0.0002142,30]
[332674697,1721419994069,3000.0,0.0002143,30]
[332674698,1721419994394,4091.834524,0.0002144,30]
[332674703,1721420593361,150.0,0.000214,30]
[332674725,1721420746172,-197.971165,0.00014646,2]
[332674726,1721420746194,-31.03288502,0.0001474,2]
[332674727,1721420819147,-218.96711498,0.0001474,2]
[332674728,1721420819170,-31.03369106,0.00014795,2]
[332674729,1721420830147,-135.63297494,0.00014795,2]
[332674730,1721420830172,-31.03369306,0.00014999,2]
[332674731,1721420837127,-218.96630694,0.00014999,2]
[332674732,1721420837151,-250.0,0.0001504,2]
[332674733,1721420837173,-250.0,0.00015082,2]
[332674734,1721420837197,-54.72235039,0.00015123,2]
[332674735,1721420840156,-195.27764961,0.00015123,2]
[332674736,1721420840180,-250.0,0.00015164,2]
[332674737,1721420840204,-250.0,0.00015205,2]
[332674738,1721420840228,-250.0,0.00015246,2]
[332674739,1721420840252,-250.0,0.00015287,2]
[332674740,1721420840276,-250.0,0.00015328,2]
[332674741,1721420840299,-250.0,0.00015369,2]
[332674742,1721420840323,-250.0,0.00015411,2]
[332674743,1721420840346,-250.0,0.00015452,2]
[332674744,1721420840369,-250.0,0.00015493,2]
[332674745,1721420840392,-250.0,0.00015534,2]
[332674746,1721420840416,-250.0,0.00015575,2]
[332674747,1721420840438,-2703.42085857,0.00015608,2]
[332674748,1721420840461,-250.0,0.00015616,2]
[332674749,1721420840483,-153.0,0.00015641,2]
[332674750,1721420840507,-73.2855046,0.00015657,2]
[332674751,1721420844116,-176.7144954,0.00015657,2]
[332674752,1721420844142,-7.69290878,0.00015698,2]
[332674754,1721420939216,250.26834637,9.999e-05,2]
[332674780,1721421031773,-2365.49325124,0.00015608,2]
[332674782,1721421031783,-242.30709122,0.00015698,2]
[332674784,1721421031793,-300.0,0.00015707,2]
[332674786,1721421031802,-300.0,0.00015707,2]
[332674788,1721421031811,-9044.39807148,0.00015708,2]
[332674790,1721421031821,-4375.05910698,0.00015708,2]
[332674792,1721421031830,-2123.06633741,0.00015708,2]
[332674794,1721421031840,-5530.90911372,0.00015708,2]
[332674796,1721421031850,-6669.94422126,0.00015708,2]
[332674798,1721421031859,-3085.40967143,0.00015708,2]
[332674800,1721421031872,-3361.85381771,0.00015708,2]
[332674802,1721421031882,-258.90785029,0.00015708,2]
[332674804,1721421031891,-437.05827168,0.0001571,2]
[332674806,1721421031900,-10601.30781374,0.00015712,2]
[332674808,1721421031910,-250.0,0.0001574,2]
[332674810,1721421031919,-154.74467129,0.00015744,2]
[332674812,1721421031929,-1638.39181986,0.00015744,2]
[332674814,1721421031939,-268.98658454,0.00015746,7]
[332674815,1721421031951,-492.98180621,0.00015751,2]
[332674817,1721421031962,-293.756678,0.00015753,2]
[332674819,1721421031972,-293.756678,0.00015778,2]
[332674821,1721421031983,-153.0,0.00015778,2]
[332674823,1721421031992,-293.756678,0.00015778,2]
[332674825,1721421032001,-153.0,0.00015778,2]
[332674827,1721421032011,-153.0,0.00015778,2]
[332674829,1721421032020,-250.0,0.00015781,2]
[332674831,1721421032029,-643.21996735,0.0001582,2]
[332674833,1721421032038,-153.0,0.00015878,2]
[332674835,1721421032047,-307.4433292,0.00015878,2]
[332674837,1721421032057,-293.756678,0.00015878,2]
[332674839,1721421032066,-293.756678,0.00015878,2]
[332674841,1721421032075,-153.0,0.0001589,2]
[332674843,1721421032085,-437.7437186,0.000159,2]
[332674845,1721421032095,-306.0,0.000159,2]
[332674847,1721421032104,-153.0,0.000159,2]
[332674849,1721421032115,-153.0,0.000159,2]
[332674851,1721421032127,-5302.51874707,0.00015947,2]
[332674853,1721421032136,-587.1657087,0.00016,2]
[332674855,1721421032145,-367.2522507,0.00016077,2]
[332674857,1721421032154,-1107.38930569,0.0001611,2]
[332674859,1721421032164,-719.48662906,0.0001611,2]
[332674861,1721421032173,-172.7595482,0.00016273,2]
[332674862,1721421032183,-617.50907299,0.00016327,2]
[332674865,1721421032193,-617.50907296,0.0001633,2]
[332674867,1721421032202,-617.50907296,0.00016333,2]
[332674868,1721421032211,-617.50907296,0.00016335,2]
[332674871,1721421032221,-617.50907296,0.00016338,2]
[332674872,1721421032230,-2363.13626076,0.00016338,2]
[332674874,1721421032239,-2000.0,0.00016338,2]
[332674876,1721421032249,-1387.89893717,0.00016338,2]
[332674878,1721421032258,-2365.49325121,0.00016345,2]
[332674880,1721421032267,-20163.7104314,0.00016417,2]
[332674882,1721421032277,-206.07,0.00016418,7]
[332674884,1721421032287,-500.0,0.00016427,2]
[332674886,1721421032296,-500.0,0.00016427,2]
[332674888,1721421032305,-482.76407659,0.00016427,2]
[332674890,1721421032315,-279.89569944,0.00016427,2]
[332674891,1721421032325,-500.0,0.00016427,2]
[332674892,1721421032334,-500.0,0.00016427,2]
[332674893,1721421032343,-500.0,0.00016427,2]
[332674894,1721421032352,-500.0,0.00016427,2]
[332674895,1721421032363,-500.0,0.00016427,2]
[332674896,1721421032374,-500.0,0.00016427,2]
[332674897,1721421032384,-500.0,0.00016427,2]
[332674898,1721421032393,-500.0,0.00016427,2]
[332674899,1721421032403,-500.0,0.00016427,2]
[332674900,1721421032413,-556.14884239,0.00016427,2]
[332674901,1721421032423,-324.6723047,0.00016427,2]
[332674902,1721421032433,-600.0,0.00016427,2]
[332674903,1721421032442,-500.0,0.00016427,2]
[332674904,1721421032452,-500.0,0.00016427,2]
[332674905,1721421032461,-413.38387515,0.00016427,2]
[332674906,1721421032471,-600.0,0.00016427,2]
[332674907,1721421032480,-500.0,0.00016427,2]
[332674908,1721421032489,-500.0,0.00016427,2]
[332674909,1721421032498,-6524.96032926,0.00016428,2]
[332674910,1721421032989,-324.87774632,0.00016428,2]
[332674911,1721421033968,199.137632,9.999e-05,2]
[332674912,1721421033989,121.56809966,9.999e-05,2]
[332674922,1721421037867,-214950.97667042,0.00016428,2]
[332674923,1721421037878,-500.0,0.00016438,2]
[332674924,1721421037888,-638.27,0.00016438,2]
[332674925,1721421037898,-500.0,0.00016438,2]
[332674926,1721421037909,-500.0,0.00016438,2]
[332674927,1721421037918,-522.2007787,0.00016438,2]
[332674928,1721421037928,-500.0,0.00016438,2]
[332674929,1721421037938,-500.0,0.00016438,2]
[332674930,1721421037948,-500.0,0.00016438,2]
[332674931,1721421037958,-500.0,0.00016438,2]
[332674932,1721421037968,-500.0,0.00016438,2]
[332674933,1721421037977,-500.0,0.00016438,2]
[332674934,1721421037987,-500.0,0.00016438,2]
[332674935,1721421037997,-500.0,0.00016438,2]
[332674936,1721421038007,-506.21006842,0.00016438,2]
[332674937,1721421038018,-500.0,0.00016438,2]
[332674938,1721421038027,-227.68672824,0.00016438,2]
[332674939,1721421038037,-1063.55,0.00016438,2]
[332674941,1721421038047,-500.0,0.00016438,2]
[332674942,1721421038057,-500.0,0.00016438,2]
[332674944,1721421038067,-500.0,0.00016438,2]
[332674945,1721421038076,-915.78,0.00016438,2]
[332674947,1721421038087,-500.0,0.00016438,2]
[332674948,1721421038097,-500.0,0.00016438,2]
[332674950,1721421038107,-500.0,0.00016438,2]
[332674951,1721421038120,-500.0,0.00016438,2]
[332674952,1721421038130,-500.0,0.00016438,2]
[332674953,1721421038140,-500.0,0.00016438,2]
[332674954,1721421038151,-500.0,0.00016438,2]
[332674955,1721421038162,-226.84244201,0.00016438,2]
[332674956,1721421038172,-500.0,0.00016438,2]
[332674957,1721421038183,-500.0,0.00016438,2]
[332674958,1721421038193,-500.0,0.00016438,2]
[332674959,1721421038203,-500.0,0.00016438,2]
[332674960,1721421038213,-500.0,0.00016438,2]
[332674961,1721421038223,-500.0,0.00016438,2]
[332674962,1721421038233,-500.0,0.00016438,2]
[332674963,1721421038243,-313.08,0.00016438,2]
[332674964,1721421038253,-500.0,0.00016438,2]
[332674965,1721421038263,-500.0,0.00016438,2]
[332674966,1721421038273,-500.0,0.00016438,2]
[332674967,1721421038282,-500.0,0.00016438,2]
[332674968,1721421038292,-509.94,0.00016438,2]
[332674969,1721421038302,-500.0,0.00016438,2]
[332674970,1721421038312,-706.9,0.00016438,2]
[332674971,1721421038322,-500.0,0.00016438,2]
[332674972,1721421038332,-900.1,0.00016438,2]
[332674973,1721421038342,-679.63,0.00016438,2]
[332674974,1721421038352,-500.0,0.00016438,2]
[332674975,1721421038362,-500.0,0.00016438,2]
[332674976,1721421038373,-500.0,0.00016438,2]
[332674977,1721421038382,-500.0,0.00016438,2]
[332674978,1721421038392,-503.22640116,0.00016438,2]
[332674979,1721421038401,-500.0,0.00016438,2]
[332674980,1721421038412,-500.0,0.00016438,2]
[332674981,1721421038421,-500.0,0.00016438,2]
[332674982,1721421038431,-500.0,0.00016438,2]
[332674983,1721421038441,-500.0,0.00016438,2]
[332674984,1721421038451,-500.0,0.00016438,2]
[332674985,1721421038461,-500.0,0.00016438,2]
[332674986,1721421038470,-500.0,0.00016438,2]
[332674987,1721421038480,-500.0,0.00016438,2]
[332674988,1721421038490,-500.0,0.00016438,2]
[332674989,1721421038499,-500.0,0.00016438,2]
[332674990,1721421038509,-564.97,0.00016438,2]
[332674991,1721421038519,-500.0,0.00016438,2]
[332674992,1721421038528,-500.0,0.00016438,2]
[332674993,1721421038538,-151.0,0.00016438,2]
[332674994,1721421038548,-500.0,0.00016438,2]
[332674995,1721421038558,-500.0,0.00016438,2]
[332674996,1721421038568,-500.0,0.00016438,2]
[332674997,1721421038577,-500.0,0.00016438,2]
[332674998,1721421038587,-500.0,0.00016438,2]
[332674999,1721421038597,-500.0,0.00016438,2]
[332675000,1721421038606,-777.0,0.00016438,2]
[332675001,1721421038616,-503.65426862,0.00016438,2]
[332675002,1721421038627,-500.0,0.00016438,2]
[332675003,1721421038636,-500.0,0.00016438,2]
[332675004,1721421038645,-1238.29,0.00016438,2]
[332675005,1721421038655,-500.0,0.00016438,2]
[332675006,1721421038665,-500.0,0.00016438,2]
[332675007,1721421038674,-500.0,0.00016438,2]
[332675008,1721421038684,-500.0,0.00016438,2]
[332675009,1721421038694,-634.97,0.00016438,2]
[332675010,1721421038703,-552.60727105,0.00016438,2]
[332675011,1721421038712,-502.47248152,0.00016438,2]
[332675012,1721421038722,-787.92,0.00016438,2]
[332675013,1721421038732,-500.0,0.00016438,2]
[332675014,1721421038741,-500.0,0.00016438,2]
[332675015,1721421038751,-500.0,0.00016438,2]
[332675016,1721421038761,-585.79544352,0.00016438,2]
[332675017,1721421038771,-500.0,0.00016438,2]
[332675018,1721421038781,-500.0,0.00016438,2]
[332675019,1721421038790,-500.0,0.00016438,2]
[332675020,1721421038800,-500.0,0.00016438,2]
[332675021,1721421038809,-500.0,0.00016438,2]
[332675022,1721421038819,-517.83614114,0.00016438,2]
[332675023,1721421038829,-549.26977682,0.00016438,2]
[332675024,1721421038838,-500.0,0.00016438,2]
[332675025,1721421038848,-484.60275525,0.00016438,2]
[332675026,1721421038857,-500.0,0.00016438,2]
[332675027,1721421038866,-500.0,0.00016438,2]
[332675028,1721421038876,-746.95,0.00016438,2]
[332675029,1721421038885,-500.0,0.00016438,2]
[332675030,1721421038895,-500.0,0.00016438,2]
[332675031,1721421038905,-354.06794769,0.00016438,2]
[332675032,1721421038914,-500.0,0.00016438,2]
[332675033,1721421038924,-500.0,0.00016438,2]
[332675034,1721421038933,-500.0,0.00016438,2]
[332675035,1721421038942,-500.0,0.00016438,2]
[332675036,1721421038952,-500.0,0.00016438,2]
[332675037,1721421038962,-979.33,0.00016438,2]
[332675038,1721421038971,-500.0,0.00016438,2]
[332675039,1721421038980,-500.0,0.00016438,2]
[332675040,1721421038989,-502.38764102,0.00016438,2]
[332675041,1721421038998,-527.50930083,0.00016438,2]
[332675042,1721421039007,-500.0,0.00016438,2]
[332675043,1721421039016,-500.0,0.00016438,2]
[332675044,1721421039025,-500.0,0.00016438,2]
[332675045,1721421039034,-500.0,0.00016438,2]
[332675046,1721421039043,-500.0,0.00016438,2]
[332675047,1721421039052,-500.0,0.00016438,2]
[332675048,1721421039062,-750.01,0.00016438,2]
[332675049,1721421039071,-500.0,0.00016438,2]
[332675050,1721421039081,-500.0,0.00016438,2]
[332675051,1721421039091,-500.0,0.00016438,2]
[332675052,1721421039100,-500.0,0.00016438,2]
[332675053,1721421039110,-500.0,0.00016438,2]
[332675054,1721421039122,-500.0,0.00016438,2]
[332675055,1721421039135,-500.0,0.00016438,2]
[332675056,1721421039145,-510.71541693,0.00016438,2]
[332675057,1721421039155,-500.0,0.00016438,2]
[332675058,1721421039164,-501.06330563,0.00016438,2]
[332675059,1721421039174,-556.33,0.00016438,2]
[332675060,1721421039184,-500.0,0.00016438,2]
[332675061,1721421039193,-500.0,0.00016438,2]
[332675062,1721421039203,-500.0,0.00016438,2]
[332675063,1721421039212,-500.0,0.00016438,2]
[332675064,1721421039222,-582.35,0.00016438,2]
[332675065,1721421039231,-500.0,0.00016438,2]
[332675066,1721421039240,-500.0,0.00016438,2]
[332675067,1721421039249,-500.0,0.00016438,2]
[332675068,1721421039259,-500.0,0.00016438,2]
[332675069,1721421039268,-515.61362713,0.00016438,2]
[332675070,1721421039277,-500.0,0.00016438,2]
[332675071,1721421039286,-2578.57,0.00016438,2]
[332675072,1721421039295,-500.0,0.00016438,2]
[332675073,1721421039304,-500.0,0.00016438,2]
[332675074,1721421039314,-500.0,0.00016438,2]
[332675075,1721421039324,-500.0,0.00016438,2]
[332675076,1721421039333,-500.0,0.00016438,2]
[332675077,1721421039343,-667.87,0.00016438,2]
[332675078,1721421039353,-500.0,0.00016438,2]
[332675079,1721421039362,-500.0,0.00016438,2]
[332675080,1721421039373,-500.0,0.00016438,2]
[332675081,1721421039383,-500.0,0.00016438,2]
[332675082,1721421039394,-500.0,0.00016438,2]
[332675083,1721421039403,-500.0,0.00016438,2]
[332675084,1721421039413,-496.0,0.00016438,2]
[332675087,1721421039660,-500.0,0.00016438,2]
[332675088,1721421039670,-500.0,0.00016438,2]
[332675089,1721421039680,-500.0,0.00016438,2]
[332675090,1721421039689,-511.23631476,0.00016438,2]
[332675091,1721421039698,-331.95277693,0.00016438,2]
[332675092,1721421039707,-500.0,0.00016438,2]
[332675093,1721421039717,-588.8,0.00016438,2]
[332675094,1721421039726,-500.0,0.00016438,2]
[332675095,1721421039735,-500.0,0.00016438,2]
[332675096,1721421039745,-523.09,0.00016438,2]
[332675097,1721421039754,-500.0,0.00016438,2]
[332675098,1721421039763,-500.0,0.00016438,2]
[332675099,1721421039773,-3466.47,0.00016438,2]
[332675100,1721421039782,-524.44,0.00016438,2]
[332675101,1721421039791,-506.45340726,0.00016438,2]
[332675102,1721421039800,-500.0,0.00016438,2]
[332675103,1721421039810,-815.84,0.00016438,2]